bitfinex/quotes_ETHUSD_20241123
["timestamp","ask_amount","ask_price","bid_price","bid_amount"]
[1732357628878,1.07292117,3350.0,3348.0,0.2969]
[1732357629303,1.07292117,3350.0,3348.1,0.55]
[1732357629897,1.07292117,3350.0,3348.0,0.8469]
[1732357631607,1.07292117,3350.0,3345.6,8.481]
[1732357631608,1.0356,3349.8,3347.4,0.2969]
[1732357631893,1.23521908,3349.7,3347.4,0.2969]
[1732357632079,1.07292696,3349.7,3347.4,0.2969]
[1732357633276,1.07292696,3349.7,3347.5,0.55]
[1732357635305,1.07292696,3349.7,3347.4,0.8469]
[1732357635464,1.0356,3349.5,3347.4,0.8469]
[1732357635665,0.22673655,3349.6,3347.4,0.8469]
[1732357635666,1.0356,3349.3,3347.4,0.8469]
[1732357636877,0.03732693,3349.2,3347.4,0.8469]
[1732357637213,1.0356,3349.1,3347.4,0.8469]
[1732357637702,1.0356,3348.9,3347.4,0.8469]
[1732357638010,1.0356,3348.9,3347.5,0.01493176]
[1732357638168,1.0356,3348.7,3347.2,0.01493912]
[1732357638364,1.07293192,3348.6,3347.2,0.01493912]
[1732357638568,1.0356,3348.6,3347.2,0.01493912]
[1732357639109,1.0356,3348.4,3347.3,0.01494839]
[1732357639416,1.0356,3348.4,3346.8,0.2969]
[1732357639417,1.0356,3348.4,3346.9,0.01494361]
[1732357639705,1.0356,3348.4,3347.2,0.2969]
[1732357640004,1.0356,3348.4,3347.3,0.01493627]
[1732357640175,1.0356,3348.4,3347.3,0.86183627]
[1732357642779,1.0356,3348.4,3347.3,0.31183627]
[1732357642984,1.0356,3348.4,3347.4,0.01494041]
[1732357644306,1.0356,3348.4,3347.3,0.2969]
[1732357644607,1.0356,3348.4,3347.4,0.01494133]
[1732357647692,1.0356,3348.4,3347.3,0.2969]
[1732357647899,1.0356,3348.4,3347.4,0.01494126]
[1732357648093,1.0356,3348.4,3347.5,0.2969]
[1732357648294,1.0356,3348.4,3347.6,0.01493615]
[1732357648719,1.0356,3348.4,3347.7,0.2969]
[1732357649010,1.0356,3348.4,3348.1,0.2969]
[1732357650116,1.0356,3348.4,3347.6,0.2969]
[1732357650419,1.0356,3348.4,3347.7,0.01493465]
[1732357651322,1.0356,3348.4,3347.4,0.2969]
[1732357651496,1.0356,3348.4,3347.6,0.2969]
[1732357652596,1.0356,3348.4,3346.8,0.31184134]
[1732357653585,1.0356,3348.4,3347.0,0.2969]
[1732357653926,1.0356,3348.4,3347.4,0.2969]
[1732357654095,1.0356,3348.4,3347.4,0.31183642]
[1732357654860,1.0356,3348.4,3347.4,0.01493642]
[1732357655001,1.0356,3348.4,3347.4,0.31183642]
[1732357656124,1.0356,3348.4,3347.4,0.01493642]
[1732357656298,1.0356,3348.4,3347.5,0.01493701]
[1732357657126,1.0356,3348.4,3347.6,0.2969]
[1732357657290,1.0356,3348.4,3347.8,0.2969]
[1732357657492,1.0356,3348.4,3347.9,0.01493262]
[1732357658004,1.0356,3348.4,3347.8,0.31183262]
[1732357658199,1.0356,3348.4,3347.8,0.2969]
[1732357658526,1.0356,3348.4,3347.7,0.2969]
[1732357658754,1.0356,3348.4,3347.9,0.2969]
[1732357659340,1.0356,3348.4,3347.9,0.31183135]
[1732357659505,1.0356,3348.4,3347.9,0.2969]
[1732357659706,1.0356,3348.4,3347.5,0.31183263]
[1732357660141,1.0356,3348.4,3347.7,0.2969]
[1732357660454,1.0356,3348.4,3347.8,0.01493258]
[1732357660814,1.0356,3348.4,3347.9,0.2969]
[1732357661241,1.0356,3348.4,3347.9,0.3118318]
[1732357661755,1.0356,3348.4,3347.5,0.01493332]
[1732357662323,1.0356,3348.4,3347.6,0.2969]
[1732357662524,1.0356,3348.4,3347.7,0.01493361]
[1732357662750,1.0356,3348.4,3347.8,0.2969]
[1732357663048,1.0356,3348.4,3347.9,0.01493324]
[1732357663245,1.0356,3348.4,3347.8,0.2969]
[1732357663458,1.0356,3348.4,3347.9,0.0149351]
[1732357664112,1.0356,3348.4,3347.5,0.2969]
[1732357664312,1.0356,3348.4,3347.6,0.01493533]
[1732357665235,1.0356,3348.4,3347.6,0.2969]
[1732357665549,1.0356,3348.4,3347.7,0.0149351]
[1732357666137,1.0356,3348.4,3347.7,0.3118351]
[1732357666583,1.0356,3348.4,3347.9,0.2969]
[1732357666870,1.0356,3348.4,3348.0,0.0149315]
[1732357669148,1.0356,3348.4,3347.9,0.31183193]
[1732357669756,1.0356,3348.4,3348.0,0.2969]
[1732357670679,1.0356,3348.4,3347.9,0.01493193]
[1732357670951,1.0356,3348.4,3347.9,0.31183193]
[1732357671773,1.0356,3348.4,3347.9,0.01493193]
[1732357672049,1.0356,3348.4,3347.9,0.31183193]
[1732357674161,1.0356,3348.4,3347.9,0.01493193]
[1732357674864,1.0356,3348.4,3347.9,0.2969]
[1732357675050,1.0356,3348.4,3348.0,0.01493215]
[1732357675689,1.0356,3348.4,3347.9,0.31183174]
[1732357675897,1.0356,3348.4,3347.9,0.01493174]
[1732357676382,1.0356,3348.4,3347.9,0.31183174]
[1732357677346,1.0356,3348.4,3347.9,0.01493174]
[1732357677695,1.0356,3348.4,3347.7,0.2969]
[1732357677895,1.0356,3348.4,3347.8,0.01493141]
[1732357678392,1.0356,3348.4,3347.9,0.2969]
[1732357678575,1.0356,3348.4,3348.0,0.01493126]
[1732357679455,1.0356,3348.4,3348.0,0.31183126]
[1732357680562,1.0356,3348.4,3348.0,0.01493126]
[1732357680896,1.0356,3348.4,3348.0,0.31183126]
[1732357681386,1.0356,3348.4,3348.0,0.2969]
[1732357681885,1.0356,3348.4,3347.8,0.2969]
[1732357682291,1.0356,3348.4,3348.0,0.2969]
[1732357684180,1.0356,3348.4,3347.4,0.01493608]
[1732357684381,1.0356,3348.4,3347.0,0.2969]
[1732357684584,1.0356,3348.4,3347.1,0.01494165]
[1732357685797,1.0356,3348.4,3347.4,0.2969]
[1732357686001,1.0356,3348.4,3347.5,0.01494178]
[1732357687000,1.0356,3348.4,3347.4,0.31184182]
[1732357687296,1.0356,3348.4,3347.6,0.01494182]
[1732357687687,1.0356,3348.4,3347.5,0.01494184]
[1732357691477,1.0356,3348.4,3347.6,0.2969]
[1732357691688,1.0356,3348.4,3347.8,0.2969]
[1732357691980,1.0356,3348.4,3348.0,0.2969]
[1732357692972,1.0356,3348.4,3347.6,0.01493348]
[1732357694777,1.0356,3348.4,3347.7,0.2969]
[1732357695173,1.0356,3348.4,3347.7,0.31183278]
[1732357695806,1.0356,3348.4,3347.7,0.01493278]
[1732357696188,1.0356,3348.4,3347.8,0.01493795]
[1732357696393,1.0356,3348.4,3347.6,0.01493795]
[1732357697534,1.0356,3348.4,3347.7,0.2969]
[1732357697696,1.0356,3348.4,3347.8,0.01493248]
[1732357698296,1.0356,3348.4,3347.9,0.2969]
[1732357699019,1.0356,3348.4,3348.0,0.01493286]
[1732357699695,0.9961,3349.8,3347.8,1.1308]
[1732357700332,0.9961,3349.8,3347.8,4.1308]
[1732357700907,0.9961,3349.8,3347.8,1.1308]
[1732357701107,0.9961,3349.6,3348.0,0.2969]
[1732357701527,0.03732077,3349.5,3348.2,0.2969]
[1732357701842,0.9961,3349.7,3348.4,0.2969]
[1732357702042,0.9961,3349.5,3348.4,0.2969]
[1732357702754,0.9961,3349.5,3347.9,0.2969]
[1732357703442,0.9961,3349.5,3348.4,1.1308]
[1732357703646,0.9961,3349.5,3348.6,0.2969]
[1732357704148,0.9961,3349.5,3348.7,0.55]
[1732357704462,0.9961,3349.5,3349.0,0.2969]
[1732357704620,0.9961,3349.5,3349.2,0.2969]
[1732357705725,0.9961,3349.5,3349.0,0.2969]
[1732357706028,0.62728537,3350.3,3349.0,0.2969]
[1732357706234,0.9671,3350.2,3349.4,0.2969]
[1732357706840,0.9671,3350.2,3349.6,0.2969]
[1732357707546,0.9671,3350.2,3349.8,0.2969]
[1732357707928,0.9671,3350.2,3349.5,0.8339]
[1732357707929,0.9671,3350.2,3349.9,0.8469]
[1732357708128,0.9671,3350.2,3349.9,0.55]
[1732357708345,0.9671,3350.2,3349.6,0.55]
[1732357709206,0.9671,3350.2,3349.3,0.55]
[1732357710739,0.9671,3350.2,3349.2,0.8339]
[1732357711046,0.9671,3350.2,3348.7,0.38616347]
[1732357711255,1.00441042,3350.1,3348.3,0.3273775]
[1732357711455,1.00441042,3350.1,3348.2,1.1308]
[1732357711616,0.9671,3350.1,3348.2,1.51696347]
[1732357711818,0.9671,3350.1,3348.3,0.38616347]
[1732357712960,0.9671,3350.1,3348.6,0.55]
[1732357713245,0.9671,3350.1,3349.1,0.8339]
[1732357713457,0.9671,3350.1,3349.2,0.93616347]
[1732357715527,0.9671,3350.1,3349.2,0.55]
[1732357715837,0.9671,3350.1,3348.9,0.55]
[1732357716954,0.9671,3350.1,3348.9,0.93616347]
[1732357718056,0.9671,3350.1,3349.2,0.2969]
[1732357718650,0.9671,3350.1,3349.4,0.2969]
[1732357719544,0.9671,3350.4,3348.7,0.2969]
[1732357719762,0.9671,3350.2,3348.7,0.2969]
[1732357720637,0.9671,3350.2,3348.9,0.2969]
[1732357721078,0.9671,3350.0,3348.9,0.2969]
[1732357721633,0.9671,3350.0,3348.7,0.2969]
[1732357722173,0.9671,3350.0,3348.9,0.2969]
[1732357723990,0.9671,3350.0,3348.9,0.68306347]
[1732357724276,0.9671,3350.0,3349.3,0.2969]
[1732357725582,0.9671,3350.0,3349.1,0.2969]
[1732357725772,0.9671,3350.0,3349.3,0.2969]
[1732357726896,0.9671,3350.0,3348.9,0.2969]
[1732357727039,0.9671,3350.0,3348.9,0.68306347]
[1732357729543,0.9671,3350.0,3348.9,0.2969]
[1732357730775,0.9671,3350.0,3348.9,0.68306347]
[1732357731289,0.9671,3350.0,3349.1,0.2969]
[1732357731645,0.9671,3350.0,3349.3,0.2969]
[1732357731848,0.9671,3350.0,3349.3,0.70941677]
[1732357737456,0.9671,3350.0,3349.5,0.2969]
[1732357737695,0.9671,3350.0,3349.7,0.2969]
[1732357738944,0.9671,3350.0,3349.3,0.2969]
[1732357739971,0.9671,3350.0,3349.1,0.2969]
[1732357740215,0.9671,3350.0,3349.3,0.2969]
[1732357741204,0.9671,3350.0,3348.6,0.2969]
[1732357741758,0.9671,3350.0,3348.6,0.70941677]
[1732357741905,1.12601108,3350.0,3348.6,0.70941677]
[1732357742341,1.12601108,3350.0,3348.8,0.2969]
[1732357742555,0.9671,3350.0,3348.8,0.70941677]
[1732357747072,0.9671,3350.0,3348.2,0.8277]
[1732357747073,0.9814,3349.8,3348.9,0.2969]
[1732357747214,0.9814,3349.6,3348.9,0.2969]
[1732357748359,0.9814,3349.6,3349.0,0.2969]
[1732357749283,0.9814,3349.6,3348.5,0.2969]
[1732357751286,0.9814,3349.6,3348.7,0.2969]
[1732357754231,0.9814,3349.6,3348.5,0.2969]
[1732357754436,0.9814,3349.6,3348.7,0.2969]
[1732357755246,1.10031943,3349.5,3347.6,0.297]
[1732357755569,1.10031943,3349.5,3347.7,0.297]
[1732357755749,1.10031943,3349.5,3347.8,0.01493634]
[1732357756538,1.10031943,3349.5,3347.8,0.31193634]
[1732357757633,1.10031943,3349.5,3347.8,0.01493634]
[1732357757837,1.10031943,3349.5,3347.5,0.297]
[1732357758038,1.10031943,3349.5,3347.6,0.01493534]
[1732357758275,1.10031943,3349.5,3347.7,0.297]
[1732357758581,1.10031943,3349.5,3347.8,0.01493533]
[1732357758943,1.063,3349.4,3347.8,0.01493533]
[1732357759144,1.063,3349.2,3347.8,0.01493533]
[1732357769385,0.03733019,3349.1,3347.6,0.01493567]
[1732357769685,1.0188,3349.1,3347.6,0.01493567]
[1732357769896,1.05613122,3349.0,3347.6,0.01493567]
[1732357770607,1.05613122,3349.0,3347.5,0.01493775]
[1732357771682,1.05613122,3349.0,3347.1,0.297]
[1732357771882,1.05613122,3349.0,3347.3,0.297]
[1732357772084,1.05613122,3349.0,3347.4,0.01494183]
[1732357773396,1.05613122,3349.0,3347.4,0.31194183]
[1732357774080,1.0188,3348.9,3347.4,0.31194183]
[1732357774287,1.22518744,3348.8,3347.5,0.297]
[1732357774608,1.05613328,3348.8,3347.5,0.297]
[1732357775329,1.05613328,3348.8,3347.4,0.31194209]
[1732357776396,1.05613328,3348.8,3347.4,0.01494209]
[1732357776625,1.05613328,3348.8,3347.2,0.297]
[1732357777385,1.05613328,3348.8,3347.1,0.297]
[1732357777998,1.0188,3348.7,3347.1,0.297]
[1732357778199,1.0188,3348.5,3347.1,0.297]
[1732357778405,1.0188,3348.3,3347.1,0.297]
[1732357779025,1.0188,3348.3,3347.3,0.297]
[1732357779238,1.0188,3348.3,3347.5,0.297]
[1732357780697,1.0188,3348.3,3347.0,0.55]
[1732357780698,1.0188,3348.3,3347.7,0.297]
[1732357781104,1.0188,3348.3,3347.8,0.01494216]
[1732357781807,1.0188,3348.3,3347.1,0.3119422]
[1732357782012,1.0188,3348.3,3347.3,0.297]
[1732357782209,1.0188,3348.3,3347.5,0.297]
[1732357782401,1.0188,3348.3,3347.6,0.01493741]
[1732357782693,1.0188,3348.3,3347.6,0.01493816]
[1732357782889,1.0188,3348.3,3347.5,0.297]
[1732357783130,1.0188,3348.3,3347.6,0.01493881]
[1732357785525,1.0188,3348.3,3347.6,0.31193881]
[1732357786016,1.0188,3348.3,3347.6,0.297]
[1732357786533,1.0188,3348.3,3347.5,0.297]
[1732357786699,1.0188,3348.3,3347.5,0.31193902]
[1732357787535,1.0188,3348.3,3347.5,0.01493902]
[1732357787707,1.0188,3348.3,3347.6,0.297]
[1732357787907,1.0188,3348.3,3347.7,0.01493906]
[1732357789231,1.0188,3348.3,3347.7,0.72445583]
[1732357790161,1.0188,3348.3,3347.7,0.31193906]
[1732357790355,1.0188,3348.3,3347.7,0.01493906]
[1732357798860,1.0188,3348.3,3347.7,0.31193906]
[1732357799337,1.0188,3348.3,3347.7,0.297]
[1732357799953,1.0188,3348.3,3347.3,0.31193736]
[1732357800253,1.0188,3348.3,3347.5,0.297]
[1732357800456,1.0188,3348.3,3347.5,0.31193956]
[1732357801234,1.0188,3348.3,3347.5,0.297]
[1732357801446,1.0188,3348.3,3347.3,0.297]
[1732357801627,1.0188,3348.3,3347.3,0.31193961]
[1732357801964,1.0188,3348.3,3347.5,0.297]
[1732357802113,1.0188,3348.3,3347.6,0.0149397]
[1732357803013,1.0188,3348.3,3347.7,0.01493969]
[1732357803734,1.0188,3348.3,3347.5,0.01493963]
[1732357804039,1.0188,3348.3,3347.5,0.31193963]
[1732357804952,1.0188,3348.3,3347.5,0.01493963]
[1732357805738,1.0188,3348.3,3347.6,0.297]
[1732357805929,1.0188,3348.3,3347.7,0.01493834]
[1732357806855,1.0188,3348.3,3347.7,0.31193834]
[1732357807848,1.0188,3348.3,3347.7,0.01493834]
[1732357808158,1.0188,3348.3,3347.6,0.01493783]
[1732357810825,1.0188,3348.3,3347.5,0.297]
[1732357811251,1.0188,3348.3,3347.2,0.31193825]
[1732357811636,1.0036,3348.1,3347.2,0.31193825]
[1732357812431,0.55,3347.8,3346.3,0.01494683]
[1732357812705,1.0036,3347.6,3345.8,0.01496928]
[1732357812871,1.0036,3347.4,3345.8,0.01496928]
[1732357813045,1.0036,3347.2,3345.8,0.01496928]
[1732357813230,0.03734701,3347.1,3345.8,0.01496928]
[1732357813428,1.0036,3347.0,3345.8,0.31196928]
[1732357814770,1.0036,3347.0,3346.0,0.297]
[1732357814926,1.0036,3347.0,3346.1,0.01496305]
[1732357815370,1.0036,3347.0,3346.2,0.297]
[1732357815674,1.0036,3347.0,3346.3,0.01496626]
[1732357815874,1.0036,3347.0,3346.2,0.297]
[1732357816461,1.0036,3347.0,3346.1,0.01496626]
[1732357816666,1.0036,3346.8,3346.0,0.297]
[1732357816881,1.04095463,3346.7,3346.0,0.297]
[1732357817605,1.04095463,3346.7,3345.8,0.297]
[1732357817967,1.04095463,3346.7,3345.1,0.01497409]
[1732357818317,1.04095463,3346.7,3345.2,0.297]
[1732357818466,1.04095463,3346.7,3345.3,0.0149846]
[1732357819263,1.0036,3346.6,3345.3,0.0149846]
[1732357819460,1.0036,3346.6,3345.1,0.297]
[1732357819461,1.0036,3346.6,3345.8,0.0149846]
[1732357820503,1.0036,3346.6,3345.2,0.01498242]
[1732357821000,0.297,3346.8,3345.2,0.01498242]
[1732357822005,0.55,3347.8,3345.8,0.01498243]
[1732357822170,0.03734858,3347.7,3345.8,0.01498243]
[1732357823278,0.55,3347.6,3345.8,0.01498243]
[1732357823477,0.03734861,3347.5,3345.8,0.01498243]
[1732357824092,0.55,3347.3,3345.8,0.01498243]
[1732357824292,0.297,3347.8,3345.3,0.01498458]
[1732357824293,0.9837,3346.9,3345.3,0.01498458]
[1732357824473,0.9837,3346.7,3345.3,0.01498458]
[1732357824802,0.9837,3346.5,3345.2,3.0]
[1732357827280,0.9837,3346.5,3345.1,0.0149902]
[1732357827478,0.9837,3346.5,3345.2,3.0]
[1732357827686,1.02105885,3346.4,3345.1,3.0149902]
[1732357828085,1.02105885,3346.4,3345.3,0.297]
[1732357828902,0.9837,3346.4,3345.4,0.01499346]
[1732357829098,0.9837,3346.4,3345.8,0.297]
[1732357834997,0.297,3346.3,3345.8,0.297]
[1732357835197,0.9837,3346.2,3345.8,0.297]
[1732357836283,1.02105625,3346.1,3345.3,0.297]
[1732357837087,0.9837,3346.1,3345.3,0.297]
[1732357837287,0.9837,3346.1,3345.2,0.31199377]
[1732357837684,0.9837,3346.1,3345.2,1.29989377]
[1732357837922,0.9837,3346.5,3345.2,1.29989377]
[1732357838222,0.9837,3346.5,3345.3,0.297]
[1732357838527,0.9837,3346.5,3345.4,0.01498094]
[1732357838730,0.9837,3346.5,3345.8,0.297]
[1732357840138,1.02105329,3346.4,3345.8,0.297]
[1732357840500,1.02105329,3346.4,3345.5,0.297]
[1732357840885,1.22152862,3346.4,3345.5,0.297]
[1732357841582,1.22152862,3346.4,3345.1,0.31199132]
[1732357842231,1.22152862,3346.4,3345.1,0.297]
[1732357842812,1.22152862,3346.4,3344.7,0.297]
[1732357843158,1.22152862,3346.4,3345.1,0.297]
[1732357846632,1.22152862,3346.4,3345.2,0.297]
[1732357847325,1.22152862,3346.4,3344.7,0.01500077]
[1732357847326,1.22152862,3346.4,3344.7,0.297]
[1732357848058,1.22152862,3346.4,3344.1,0.297]
[1732357848271,1.22152862,3346.4,3344.5,0.297]
[1732357848843,1.22152862,3346.4,3343.9,0.297]
[1732357848844,1.0342,3346.0,3343.9,0.297]
[1732357849152,1.0342,3345.8,3343.7,0.297]
[1732357849328,1.0342,3345.6,3344.0,0.297]
[1732357849528,0.55,3346.3,3344.0,0.297]
[1732357849529,1.0342,3345.4,3344.0,0.297]
[1732357849754,1.0342,3345.2,3344.0,0.297]
[1732357850352,1.0342,3345.2,3343.9,0.297]
[1732357850727,1.0342,3345.2,3343.9,3.297]
[1732357851140,1.0342,3345.2,3343.9,0.297]
[1732357851351,1.0342,3345.2,3343.9,3.297]
[1732357851678,1.0342,3345.2,3343.9,0.297]
[1732357851854,1.0342,3345.2,3344.3,0.297]
[1732357852055,1.0342,3345.2,3344.9,0.297]
[1732357852231,1.0342,3346.1,3344.9,0.297]
[1732357852577,0.03736157,3346.0,3345.0,0.297]
[1732357852857,1.0342,3345.9,3345.0,0.297]
[1732357853363,1.0342,3345.9,3344.4,1.0028]
[1732357853364,1.0342,3345.9,3344.5,0.297]
[1732357853562,1.0342,3345.9,3344.8,0.297]
[1732357853858,1.0342,3345.9,3345.0,0.297]
[1732357855159,1.0342,3345.9,3344.7,0.297]
[1732357855362,1.0342,3345.9,3345.1,0.297]
[1732357856307,1.0342,3345.9,3344.9,0.297]
[1732357856455,1.0342,3345.9,3345.1,0.297]
[1732357858567,1.0342,3345.9,3345.2,0.297]
[1732357858795,1.0342,3345.9,3344.8,0.847]
[1732357858974,1.0342,3345.7,3343.5,1.0028]
[1732357859187,1.0342,3345.5,3343.5,1.0028]
[1732357859497,1.0342,3345.3,3343.5,1.0028]
[1732357859670,1.0342,3345.1,3343.5,1.0028]
[1732357859863,1.0342,3345.1,3343.6,0.297]
[1732357860704,1.0342,3345.1,3343.5,1.0028]
[1732357860705,1.0342,3345.1,3344.1,0.297]
[1732357861361,1.0342,3345.1,3344.2,0.55]
[1732357862816,1.0342,3345.1,3344.3,0.297]
[1732357863803,1.0342,3345.1,3343.6,0.297]
[1732357864112,1.0482,3344.9,3344.0,0.297]
[1732357866011,0.03737349,3346.2,3344.0,0.297]
[1732357866012,1.0482,3344.7,3344.0,0.297]
[1732357866211,1.0482,3344.7,3344.1,0.297]
[1732357867084,1.0482,3344.7,3343.8,0.297]
[1732357868121,1.0482,3344.5,3343.4,0.297]
[1732357868414,1.0482,3344.3,3343.9,0.297]
[1732357869350,1.0482,3344.3,3343.8,0.297]
[1732357871383,1.0482,3344.3,3343.6,0.297]
[1732357871599,1.0482,3344.3,3343.7,0.297]
[1732357872724,1.0482,3344.3,3343.8,0.297]
[1732357873033,1.0482,3344.3,3343.9,0.55]
[1732357873932,1.0482,3344.3,3343.9,0.847]
[1732357875228,1.0482,3344.3,3343.9,0.297]
[1732357876281,0.03738185,3344.2,3343.2,0.297]
[1732357876485,1.0482,3344.1,3343.2,0.297]
[1732357877317,1.0482,3344.1,3343.4,0.297]
[1732357877700,1.0482,3344.1,3343.6,0.297]
[1732357879420,1.0482,3344.1,3343.8,0.297]
[1732357880402,1.0482,3344.1,3343.4,0.297]
[1732357881515,1.08558183,3344.0,3342.9,3.297]
[1732357881720,1.08558183,3344.0,3342.9,0.297]
[1732357882026,1.0482,3344.0,3342.9,3.297]
[1732357882226,1.0482,3344.0,3342.9,0.297]
[1732357882431,1.0482,3344.0,3342.9,3.297]
[1732357882730,1.0482,3344.0,3343.2,0.297]
[1732357883093,1.0482,3344.0,3343.4,0.297]
[1732357886807,0.9759,3343.8,3343.4,0.297]
[1732357887236,0.9759,3343.8,3343.1,0.55]
[1732357887533,0.9759,3343.8,3343.2,0.297]
[1732357889530,0.9759,3343.8,3343.4,0.297]
[1732357889760,0.9759,3344.6,3343.4,0.297]
[1732357889893,1.17831,3344.5,3343.4,0.297]
[1732357890095,0.9759,3344.5,3343.4,0.297]
[1732357890596,0.9759,3344.5,3343.5,0.297]
[1732357891390,0.0373819,3344.4,3343.5,0.297]
[1732357891622,1.0132819,3344.4,3343.2,0.297]
[1732357891827,1.0132819,3344.4,3343.4,0.297]
[1732357892028,0.9759,3344.4,3343.4,0.297]
[1732357892453,0.9759,3344.4,3343.6,0.297]
[1732357892836,0.9759,3344.4,3343.8,0.297]
[1732357893033,0.9759,3344.4,3343.2,0.297]
[1732357893273,0.03737904,3344.3,3343.4,0.297]
[1732357893567,1.0172,3344.2,3343.5,0.297]
[1732357894244,1.0172,3344.2,3343.6,0.55]
[1732357895527,1.0172,3344.2,3343.7,0.22275428]
[1732357895830,1.0172,3344.2,3343.8,0.22275428]
[1732357896036,1.0172,3344.2,3343.9,0.22275428]
[1732357896236,1.0172,3344.2,3344.0,0.22275428]
[1732357896576,1.0172,3344.6,3344.1,0.77275428]
[1732357896778,1.0172,3344.6,3344.2,0.297]
[1732357896927,1.0172,3344.6,3344.3,0.51975428]
[1732357897126,1.0172,3344.6,3344.4,0.22275428]
[1732357897325,1.0172,3344.6,3344.3,0.297]
[1732357897326,1.0172,3344.6,3344.5,0.22275428]
[1732357897959,1.22374,3344.6,3344.5,0.22275428]
[1732357898469,1.26111817,3344.6,3342.4,0.9925]
[1732357898769,1.26111817,3344.6,3342.3,0.1504522]
[1732357898770,1.26111817,3344.6,3342.6,0.9925]
[1732357898972,1.0172,3344.4,3343.1,0.297]
[1732357899184,1.0172,3344.4,3343.3,0.297]
[1732357899643,1.0172,3344.3,3343.5,0.297]
[1732357899846,1.0172,3344.3,3343.6,0.2228444]
[1732357900177,1.0172,3344.3,3343.7,0.2228444]
[1732357900537,1.0172,3344.3,3343.8,0.2228444]
[1732357900735,1.0172,3344.3,3343.9,0.2228444]
[1732357900928,1.0172,3344.3,3344.0,0.2228444]
[1732357901260,1.05458415,3344.2,3343.0,0.297]
[1732357901452,1.05458415,3344.2,3344.1,0.22286125]
[1732357901965,1.0172,3344.2,3344.1,0.2228581]
[1732357902274,1.0172,3344.2,3343.2,0.297]
[1732357902565,1.0172,3344.2,3343.3,0.22285512]
[1732357902756,1.0172,3344.2,3343.4,0.22285512]
[1732357902966,1.0172,3344.2,3343.6,0.847]
[1732357903164,1.0172,3344.2,3343.7,0.22285512]
[1732357903356,1.0172,3344.2,3343.8,0.22285512]
[1732357903553,1.0172,3344.2,3343.9,0.22285512]
[1732357903759,1.0172,3344.2,3344.0,0.22285512]
[1732357903944,1.0172,3344.2,3344.1,0.22285512]
[1732357905945,1.0172,3344.2,3344.1,0.22291642]
[1732357908888,1.0172,3344.2,3343.0,0.55]
[1732357908889,1.0172,3344.2,3342.9,3.0]
[1732357909074,1.0172,3344.2,3343.0,0.77292795]
[1732357909277,1.0172,3344.2,3343.2,0.55]
[1732357909605,1.0172,3344.2,3343.3,0.22292795]
[1732357909767,1.0172,3344.2,3343.4,0.22292795]
[1732357909963,1.0172,3344.2,3343.5,0.22295508]
[1732357910163,1.0172,3344.2,3343.6,0.22295508]
[1732357910459,1.0172,3344.2,3343.7,0.22295508]
[1732357910684,1.0172,3344.2,3343.8,0.22295508]
[1732357910893,1.0172,3344.2,3343.9,0.22295508]
[1732357911076,1.0172,3344.2,3344.0,0.22295508]
[1732357911275,1.0172,3344.2,3344.1,0.22295508]
[1732357912702,1.0482,3344.7,3344.1,0.22295508]
[1732357912703,0.9759,3344.6,3344.1,0.22295508]
[1732357912925,0.9759,3344.6,3344.2,0.77295508]
[1732357913066,0.9759,3344.6,3344.3,0.22295508]
[1732357913411,0.03737583,3344.5,3344.4,0.22295508]
[1732357913587,1.17831,3344.6,3344.4,0.22295508]
[1732357913779,1.01327585,3344.5,3343.2,3.0]
[1732357913976,0.9759,3344.4,3343.3,0.77291059]
[1732357914188,0.9759,3344.4,3343.5,0.55]
[1732357914498,0.9759,3344.4,3343.7,0.55]
[1732357914666,0.9759,3344.4,3343.8,0.22291059]
[1732357914861,0.9759,3344.4,3343.9,0.77291059]
[1732357915113,0.9759,3344.4,3344.0,0.22291059]
[1732357915309,0.9759,3344.4,3344.1,0.22291059]
[1732357915464,0.9759,3344.4,3344.2,0.22291059]
[1732357915804,0.9759,3344.4,3344.3,0.22291059]
[1732357916666,0.9759,3344.4,3343.9,0.55]
[1732357917006,0.9759,3344.4,3344.1,0.55]
[1732357917207,0.9759,3344.4,3344.2,0.22288399]
[1732357917410,0.9759,3344.4,3344.3,0.22288399]
[1732357918371,0.9759,3344.4,3344.3,0.77288399]
[1732357919283,1.17831,3344.4,3344.3,0.77288399]
[1732357920282,1.17831,3344.4,3344.3,0.77285739]
[1732357920694,0.9759,3344.4,3344.3,0.77285739]
[1732357922870,0.9759,3344.4,3344.3,0.22285739]
[1732357928392,0.9759,3344.4,3343.2,0.55]
[1732357928598,0.9759,3344.4,3343.1,0.9802]
[1732357928599,0.9759,3344.4,3343.4,0.55]
[1732357928801,0.9759,3344.4,3343.6,0.55]
[1732357928987,1.18204809,3344.4,3343.7,0.22289433]
[1732357929225,0.9883,3344.2,3343.8,0.22289433]
[1732357929511,0.9883,3344.2,3343.9,0.22289433]
[1732357929715,0.9883,3344.2,3344.0,0.22289433]
[1732357929899,1.18515,3344.2,3344.1,0.22289433]
[1732357930096,1.18515,3344.2,3343.2,0.55]
[1732357930315,1.18515,3344.2,3343.4,0.55]
[1732357930526,0.9883,3344.2,3343.5,0.22288898]
[1732357930727,0.9883,3344.2,3343.6,0.22288898]
[1732357930886,0.9883,3344.2,3343.7,0.22288898]
[1732357931091,0.9883,3344.2,3343.8,0.22288898]
[1732357931407,0.9883,3344.2,3343.9,0.22288898]
[1732357931598,0.9883,3344.2,3343.8,0.0813566]
[1732357931599,0.9883,3344.2,3344.0,0.22288898]
[1732357931796,0.9883,3344.2,3344.1,0.22288898]
[1732357933123,0.9883,3345.5,3344.1,0.22288898]
[1732357933321,0.9802,3344.9,3344.2,0.22288898]